bitfinex-derivatives/quotes_ETHF0:USTF0_20220106
["timestamp","ask_amount","ask_price","bid_price","bid_amount"]
[1641502653192,0.857164,3422.6,3422.4,2.00479]
[1641502654993,0.8818,3422.8,3422.4,2.00479]
[1641502655393,2.00479,3422.9,3422.8,1.21149943]
[1641502655593,2.00479,3422.9,3422.4,2.00479]
[1641502655794,2.40864399,3422.5,3422.4,2.00479]
[1641502656892,2.86862599,3422.5,3422.4,2.00479]
[1641502657097,1.687454,3422.5,3422.4,2.00479]
[1641502657294,1.687454,3422.5,3421.9,0.7418251]
[1641502657497,0.397182,3422.4,3421.9,0.7418251]
[1641502658101,1.5,3422.3,3421.9,0.7418251]
[1641502658299,0.397182,3422.2,3421.9,0.7418251]
[1641502658499,0.397182,3422.2,3421.6,4.00958]
[1641502658500,1.959982,3422.1,3421.6,4.00958]
[1641502658699,0.459982,3422.1,3421.6,4.00958]
[1641502658899,0.397182,3422.0,3421.6,4.00958]
[1641502659099,1.897182,3422.0,3421.6,4.00958]
[1641502659704,1.5,3421.8,3421.2,0.7418251]
[1641502659899,1.5,3421.6,3421.2,0.7418251]
[1641502660501,0.397182,3421.5,3421.2,0.7418251]
[1641502660799,0.459982,3421.4,3421.2,0.7418251]
[1641502661001,0.459982,3421.4,3421.1,2.00479]
[1641502661002,1.20471014,3421.3,3421.1,2.7466151]
[1641502661600,0.459982,3421.2,3421.1,2.7466151]
[1641502662401,1.20471014,3421.3,3421.1,2.7466151]
[1641502663511,0.5695,3421.8,3421.1,2.00479]
[1641502663703,2.90597917,3422.0,3421.5,4.0]
[1641502664003,2.90597917,3422.0,3421.7,2.00479]
[1641502664204,0.459982,3421.9,3421.7,2.00479]
[1641502664805,1.46098014,3422.1,3421.7,2.00479]
[1641502665702,2.00479,3422.9,3421.7,2.00479]
[1641502665903,2.00479,3422.9,3421.7,4.00958]
[1641502666704,2.00479,3422.9,3422.1,4.0]
[1641502667105,2.00479,3422.9,3422.3,0.87658179]
[1641502668106,2.00479,3423.2,3422.7,4.0]
[1641502668405,2.00479,3423.2,3422.7,5.46838155]
[1641502668606,3.46528791,3423.2,3422.7,5.46838155]
[1641502669305,1.46056299,3423.0,3422.7,5.46838155]
[1641502669705,2.00479,3423.2,3422.7,5.46838155]
[1641502670106,2.00479,3423.7,3422.7,6.96838155]
[1641502670305,2.00479,3423.7,3423.4,4.0]
[1641502670506,2.00479,3423.7,3423.4,4.8703]
[1641502670907,2.00279,3423.7,3423.4,4.8703]
[1641502672006,2.00279,3423.7,3423.5,3.99762007]
[1641502673310,2.462772,3423.7,3423.5,3.99762007]
[1641502673607,2.462772,3423.7,3423.3,3.16006771]
[1641502673608,1.5,3423.6,3423.3,3.16006771]
[1641502673808,2.81969,3423.7,3423.3,3.16006771]
[1641502674209,0.8169,3423.7,3423.3,1.18254387]
[1641502674410,0.8169,3423.7,3423.0,6.00479]
[1641502674612,0.8169,3423.7,3423.0,2.00479]
[1641502674810,1.5,3423.6,3423.0,2.00479]
[1641502675014,0.8169,3423.7,3423.0,2.00479]
[1641502675412,0.384472,3423.6,3423.0,2.00479]
[1641502675611,4.40427424,3424.0,3423.0,2.00479]
[1641502676013,4.40427424,3424.0,3423.6,2.00479]
[1641502676212,2.90427424,3424.0,3423.6,2.00479]
[1641502676412,0.397182,3424.1,3423.6,2.00479]
[1641502676913,2.00479,3424.2,3423.6,2.74629]
[1641502677314,2.00479,3424.2,3423.6,0.12519772]
[1641502678116,2.00479,3424.2,3424.1,4.0]
[1641502678317,1.45995986,3424.5,3424.1,4.0]
[1641502679015,0.94894421,3424.7,3424.1,4.0]
[1641502679416,0.94894421,3424.7,3423.7,3.76687555]
[1641502679818,0.94894421,3424.7,3424.4,2.81845326]
[1641502680018,2.00479,3425.2,3424.4,4.82324326]
[1641502680216,2.00479,3425.2,3424.4,5.44724326]
[1641502680217,0.781654,3425.1,3424.4,5.44724326]
[1641502680418,2.281654,3425.1,3424.4,5.44724326]
[1641502680619,0.781654,3425.1,3424.4,2.62879]
[1641502681018,2.281654,3425.1,3424.4,2.62879]
[1641502681219,2.281654,3425.1,3424.4,2.00479]
[1641502681819,1.5,3424.6,3424.4,2.00479]
[1641502682020,0.857164,3424.5,3424.4,2.00479]
[1641502682824,0.459982,3424.5,3424.4,2.00479]
[1641502683121,3.28784793,3425.1,3424.4,2.00479]
[1641502683322,0.397182,3425.0,3424.4,2.00479]
[1641502683721,1.5,3424.5,3423.8,0.87620248]
[1641502683923,5.50958,3423.9,3423.1,29.6992]
[1641502684125,4.00958,3423.9,3422.7,35.82369]
[1641502684524,4.00958,3423.9,3422.7,31.82369]
[1641502685326,4.00958,3423.9,3423.2,4.0]
[1641502685524,4.00958,3423.9,3423.5,0.87629113]
[1641502685925,1.80706521,3423.6,3423.5,0.87629113]
[1641502687326,0.46345755,3423.8,3423.5,0.87629113]
[1641502687527,0.46345755,3423.8,3423.7,4.0]
[1641502689632,2.4091254,3424.3,3423.8,12.49]
[1641502689833,2.4091254,3424.3,3424.0,12.49]
[1641502690034,2.4091254,3424.3,3424.1,1.5]
[1641502690235,4.98446433,3424.5,3424.1,18.662692]
[1641502690434,4.98446433,3424.5,3424.4,4.0]
[1641502691435,2.97967433,3424.5,3424.4,4.0]
[1641502691935,2.00479,3425.2,3424.4,6.00479]
[1641502692236,1.45969075,3425.1,3424.4,6.00479]
[1641502692435,2.00479,3425.2,3424.4,6.00479]
[1641502692635,0.397182,3425.1,3424.4,2.00479]
[1641502692837,1.5,3424.7,3424.4,2.00479]
[1641502693035,0.459982,3424.6,3424.4,2.00479]
[1641502693235,1.184782,3424.6,3424.4,2.7466151]
[1641502693435,1.184782,3424.6,3424.4,0.7418251]
[1641502694243,2.00479,3424.7,3424.4,4.7418251]
[1641502694437,2.00479,3424.7,3424.4,5.5111251]
[1641502694638,2.00479,3424.7,3424.4,4.7693]
[1641502695239,2.00479,3424.7,3424.5,0.87603981]
[1641502697642,2.00479,3425.2,3424.5,0.87603981]
[1641502697840,2.00479,3425.2,3424.4,0.7693]
[1641502698041,2.00479,3425.2,3424.5,2.00479]
[1641502698644,1.5,3425.1,3424.5,2.00479]
[1641502698843,1.897182,3425.1,3424.5,2.00479]
[1641502699043,0.384472,3425.0,3424.5,2.00479]
[1641502700448,2.00479,3425.2,3424.5,6.00479]
[1641502700847,2.00479,3425.2,3424.5,2.00479]
[1641502701049,1.5,3425.1,3424.5,2.00479]
[1641502701650,1.897182,3425.1,3424.5,2.00479]
[1641502702048,1.5,3424.6,3424.0,2.00479]
[1641502702249,0.397182,3424.5,3424.0,2.00479]
[1641502702448,1.5,3424.4,3424.0,2.00479]
[1641502702648,1.5,3424.4,3423.2,29.9395]
[1641502702849,1.5,3424.0,3423.0,28.219]
[1641502703049,1.5,3424.0,3422.8,0.87645302]
[1641502703253,1.5,3424.2,3422.8,0.87645302]
[1641502703454,4.40417253,3424.2,3422.8,0.87645302]
[1641502703850,4.40417253,3424.2,3422.8,8.87645302]
[1641502704050,2.00479,3424.1,3423.3,2.88112328]
[1641502704251,0.397182,3424.0,3423.3,2.88112328]
[1641502704752,2.00479,3424.1,3423.3,2.88112328]
[1641502704953,0.781654,3424.0,3423.3,2.88112328]
[1641502705153,1.5,3423.9,3423.3,2.88112328]
[1641502705353,0.384472,3424.0,3423.3,2.88112328]
[1641502705554,0.397182,3423.9,3423.3,2.88112328]
[1641502705755,2.00479,3424.1,3423.3,2.88112328]
[1641502705954,2.00479,3424.1,3423.5,4.0]
[1641502706156,2.401972,3424.1,3423.5,4.0]
[1641502708059,2.00479,3424.1,3423.5,4.0]
[1641502709058,2.00479,3424.1,3423.7,0.87622879]
[1641502710160,1.06756671,3424.1,3423.5,25.54155471]
[1641502710763,1.06756671,3424.1,3423.6,4.67317]
[1641502712063,2.00479,3424.4,3423.7,2.00479]
[1641502712762,2.00479,3424.4,3424.2,4.0]
[1641502712962,0.459982,3424.3,3424.2,4.7227]
[1641502713161,2.00479,3424.4,3424.2,4.7227]
[1641502713762,2.464772,3424.4,3424.2,4.7227]
[1641502714165,2.00479,3424.4,3424.2,4.7227]
[1641502715870,2.464772,3424.4,3424.2,4.7227]
[1641502716067,2.00479,3424.4,3424.2,4.7227]
[1641502717771,0.459982,3424.3,3424.2,4.7227]
[1641502717972,2.00479,3424.4,3424.2,4.7227]
[1641502720475,0.459982,3424.3,3424.0,1.31552848]
[1641502720676,0.459982,3424.3,3423.7,2.00479]
[1641502721077,0.397182,3424.2,3423.7,2.00479]
[1641502723981,1.19115874,3423.9,3423.7,2.7466151]
[1641502724181,0.459982,3423.8,3423.7,2.7466151]
[1641502724582,1.261982,3423.8,3423.7,2.7466151]
[1641502725585,2.91650098,3423.8,3423.7,2.00479]
[1641502725791,4.41650098,3423.8,3423.6,0.7418251]
[1641502725987,0.397182,3423.7,3423.3,2.00479]
[1641502726888,0.86054224,3423.7,3423.3,2.00479]
[1641502727489,1.5,3423.6,3423.3,2.00479]
[1641502727690,0.459982,3423.5,3423.3,2.00479]
[1641502727989,0.857164,3423.5,3423.3,2.00479]
[1641502728491,3.76187064,3423.5,3422.7,2.00479]
[1641502729091,0.857164,3423.5,3422.7,2.00479]
[1641502729891,1.20640073,3423.1,3422.8,0.2902644]
[1641502730091,0.96512059,3422.9,3422.8,0.2902644]
[1641502730290,1.82228459,3422.9,3422.8,0.2902644]
[1641502731391,0.857164,3422.9,3422.7,2.00479]
[1641502732192,1.46040406,3423.4,3422.7,6.00479]
[1641502732393,1.46040406,3423.4,3422.7,6.81709]
[1641502732592,2.00479,3423.5,3422.7,6.81709]
[1641502732792,2.96991059,3423.5,3422.8,0.13140441]
[1641502733195,2.96991059,3423.5,3422.7,6.81709]
[1641502733496,2.96991059,3423.5,3422.8,8.0]
[1641502733693,0.96512059,3423.5,3422.8,9.41312051]
[1641502733891,2.00479,3423.9,3422.8,9.41312051]
[1641502733892,2.00479,3423.9,3422.8,9.54452877]
[1641502734094,2.00479,3423.9,3422.8,9.41312051]
[1641502734293,2.00479,3423.9,3423.1,2.00479]
[1641502734492,0.781654,3423.8,3423.1,2.00479]
[1641502734694,1.46040406,3423.4,3423.1,2.00479]
[1641502735094,0.781654,3423.8,3423.1,2.00479]
[1641502735995,0.781654,3423.8,3423.3,0.87633727]
[1641502737694,0.781654,3423.8,3423.3,1.00737651]
[1641502740898,0.781654,3423.8,3423.1,2.00479]
[1641502741102,1.5,3423.6,3422.7,1.20905814]
[1641502741297,1.5,3423.2,3422.7,1.20905814]
[1641502741498,0.781654,3423.1,3422.0,59.4217]
[1641502741700,1.5,3422.8,3421.9,1.4512413]
[1641502741898,2.90528339,3422.9,3421.9,1.4512413]
[1641502742099,1.251172,3423.1,3422.4,26.90925922]
[1641502742298,2.00479,3422.8,3422.4,26.90925922]
[1641502742901,0.397182,3422.7,3422.0,2.00479]
[1641502743301,1.5,3422.4,3421.7,0.87674818]
[1641502743503,0.781654,3422.3,3421.1,0.87690125]
[1641502744402,2.00479,3421.6,3421.2,0.13147921]
[1641502745304,2.62219,3421.6,3421.2,0.13147921]
[1641502745906,2.62219,3421.6,3420.8,2.00479]
[1641502745907,0.397182,3421.5,3420.8,2.00479]
[1641502746602,0.397182,3421.5,3420.9,0.13137992]
[1641502748004,2.00479,3421.6,3421.4,4.0]
[1641502748206,2.00479,3421.9,3421.4,4.0]
[1641502748404,3.46585553,3421.9,3421.4,4.0]
[1641502748605,3.46585553,3421.9,3421.5,0.13137992]
[1641502749007,2.00479,3421.9,3421.5,0.13137992]
[1641502750407,2.00479,3421.9,3421.6,0.87676898]
[1641502750604,2.00479,3421.9,3421.8,4.0]
[1641502750807,2.464772,3421.9,3421.6,1.0081489]
[1641502751004,2.464772,3421.9,3421.6,0.87676898]
[1641502751208,2.00479,3421.9,3421.6,0.87676898]
[1641502751607,0.459982,3421.8,3421.6,1.61433053]
[1641502752705,2.00479,3421.9,3421.6,0.87676898]
[1641502752906,0.459982,3421.8,3421.6,0.87676898]
[1641502753306,2.00479,3421.9,3421.6,0.87676898]
[1641502755208,0.459982,3421.8,3421.6,0.87676898]
[1641502756008,2.00479,3421.9,3421.6,0.87676898]
[1641502756407,2.00479,3421.9,3421.6,1.66506898]
[1641502756809,2.00479,3421.9,3421.7,0.29041947]
[1641502757010,2.00479,3421.9,3421.8,4.0]
[1641502757908,0.96512059,3422.2,3421.9,2.13269363]
[1641502758109,0.459982,3422.1,3421.8,4.0]
[1641502758309,0.459982,3422.1,3421.8,4.29041947]
[1641502758508,0.459982,3422.1,3421.8,0.29041947]
[1641502758910,0.857164,3422.1,3421.8,0.29041947]
[1641502759109,0.46356964,3422.0,3421.9,0.29041947]
[1641502760512,0.46356964,3422.0,3421.8,0.29041947]
[1641502760713,1.42869023,3422.0,3421.8,0.29041947]
[1641502761513,0.459982,3421.9,3421.8,0.29041947]
[1641502762716,0.92355164,3421.9,3421.8,0.29041947]
[1641502767123,1.88867223,3421.9,3421.8,0.29041947]
[1641502767925,3.38867223,3421.9,3421.8,0.29041947]
[1641502768125,6.29476173,3421.9,3421.8,0.29041947]
[1641502768324,6.29476173,3421.9,3420.9,2.44310949]
[1641502768623,3.50479,3421.4,3420.9,2.44310949]
[1641502768822,0.781654,3421.3,3420.9,2.44310949]
[1641502769524,1.5,3421.2,3420.9,2.44310949]
[1641502769724,0.857164,3421.1,3420.9,2.44310949]
[1641502769923,0.857164,3421.1,3420.9,0.61809283]
[1641502770127,0.857164,3421.1,3420.6,2.00479]
[1641502771425,0.96155546,3420.9,3420.6,2.00479]
[1641502771623,0.96155546,3420.9,3420.7,0.87699428]
[1641502771822,0.96155546,3420.9,3420.7,1.61449428]
[1641502772626,0.96155546,3420.9,3420.7,3.11449428]
[1641502772924,0.96155546,3420.9,3420.7,1.61449428]
[1641502773129,1.46106553,3421.9,3420.7,3.11449428]
[1641502773627,1.46133882,3421.2,3420.7,3.11449428]
[1641502773825,1.46106553,3421.9,3420.7,3.11449428]
[1641502774026,1.46106553,3421.9,3420.7,1.61449428]
[1641502774828,1.46106553,3421.9,3421.0,2.00479]
[1641502775026,1.46106553,3421.9,3421.1,4.0]
[1641502775229,1.46106553,3421.9,3421.2,0.90355114]
[1641502775627,2.00479,3422.1,3421.2,0.90355114]
[1641502776829,2.00479,3422.1,3421.7,2.00479]
[1641502779230,2.00479,3422.1,3421.7,2.70989]
[1641502779631,2.00479,3422.1,3421.9,2.83542042]
[1641502780730,1.46077526,3422.5,3421.9,2.83542042]
[1641502781130,0.384472,3422.6,3421.9,2.83542042]
[1641502782835,0.384472,3422.6,3421.7,2.00479]
[1641502783233,0.384472,3422.6,3421.6,2.83567712]
[1641502784834,2.00479,3422.3,3421.6,2.83567712]
[1641502785635,2.00479,3422.3,3421.8,4.0]
[1641502786234,2.00479,3422.3,3422.2,1.5]
[1641502786436,2.92106829,3423.1,3422.2,2.2693]
[1641502786641,1.46054058,3423.1,3422.9,1.5]
[1641502786837,0.96155546,3423.6,3423.0,2.00479]
[1641502787037,0.96155546,3423.6,3423.1,8.61613625]
[1641502787439,0.96155546,3423.6,3423.5,3.79990917]
[1641502787639,0.26494432,3423.9,3423.5,3.79990917]
[1641502787840,1.42939049,3424.1,3423.5,3.79990917]
[1641502787841,1.42939049,3424.1,3423.8,4.0]
[1641502788041,1.37909049,3424.1,3424.0,1.22623614]
[1641502788241,2.87909049,3424.1,3422.5,1.41460819]
[1641502788440,1.5,3423.6,3422.0,29.1354]
[1641502788639,5.06752714,3424.1,3422.0,30.6354]
[1641502788841,2.00479,3423.3,3422.5,2.00479]
[1641502789047,0.397182,3423.2,3422.5,2.00479]
[1641502789540,2.00479,3423.6,3422.8,1.5]
[1641502789740,3.85843885,3424.4,3422.8,0.7309]
[1641502789940,2.90399452,3424.4,3422.8,10.2309]
[1641502790340,2.90399452,3424.4,3422.8,8.7309]
[1641502790741,6.40878452,3424.4,3423.6,2.00479]
[1641502790941,4.40446924,3423.8,3421.9,29.00149532]
[1641502791141,4.40446924,3423.8,3422.0,37.1354]
[1641502791340,2.90458794,3423.7,3422.0,29.1354]
[1641502791639,3.54908794,3423.7,3422.0,29.1354]
[1641502792040,3.54908794,3423.7,3422.9,0.43672953]
[1641502792241,0.397182,3423.6,3422.9,0.43672953]
[1641502792940,2.389262,3423.5,3422.9,0.43672953]
[1641502793141,0.397182,3423.4,3422.9,0.43672953]
[1641502793540,0.397182,3423.4,3422.7,2.00479]
[1641502794239,0.46344496,3423.5,3422.9,4.0]
[1641502794440,0.46344496,3423.5,3422.9,4.7267]
[1641502794641,0.46344496,3423.3,3422.9,4.7267]
[1641502794840,0.46344496,3423.3,3423.2,2.00479]
[1641502795843,0.46344496,3423.4,3423.2,2.00479]
[1641502796041,0.92342696,3423.4,3423.2,2.00479]
[1641502796240,0.397182,3423.3,3423.2,2.00479]
[1641502796441,0.951082,3423.3,3423.0,0.43672953]
[1641502796844,2.00479,3423.1,3422.7,0.61792662]
[1641502797042,2.00479,3423.1,3422.6,0.61792662]
[1641502797243,0.397182,3423.0,3422.6,0.61792662]
[1641502798044,0.384472,3422.9,3422.6,0.61792662]
[1641502798245,0.857164,3422.8,3422.6,0.61792662]
[1641502798443,16.89552941,3422.7,3422.2,1.82501666]
[1641502798643,15.39552941,3422.7,3422.2,1.82501666]
[1641502798844,2.401972,3422.6,3422.4,0.43683373]
[1641502799046,0.459982,3422.5,3422.4,0.43683373]
[1641502800045,0.84791696,3422.9,3422.4,0.43683373]
[1641502800046,0.46344496,3422.9,3422.4,0.43683373]
[1641502800247,0.46344496,3422.5,3422.4,0.7186]
[1641502800849,1.44483158,3422.6,3422.5,0.41308316]
[1641502801249,1.90481358,3422.6,3422.4,2.72339]
[1641502801447,1.90481358,3422.6,3422.4,0.7186]
[1641502801647,0.459982,3422.6,3422.0,2.00479]
[1641502801850,0.857164,3422.6,3422.0,2.00479]
[1641502803352,0.397182,3422.6,3422.1,4.0]
[1641502803552,0.397182,3422.6,3422.0,2.00479]
[1641502804158,2.00479,3422.7,3422.0,2.00479]
[1641502805052,2.00479,3422.7,3422.1,0.7068]
[1641502806352,0.384472,3422.6,3422.1,0.7068]
[1641502806753,0.384472,3422.6,3422.0,2.00479]
[1641502806950,2.00479,3422.7,3422.0,2.00479]
[1641502808251,0.397182,3422.6,3422.0,2.00479]
[1641502809252,2.00479,3422.7,3422.0,2.00479]
[1641502809454,3.46531778,3423.1,3422.4,8.87657551]
[1641502809855,2.00479,3423.1,3423.0,0.87642212]
[1641502810054,2.464772,3423.1,3423.0,0.87642212]
[1641502810453,2.464772,3423.1,3422.9,0.6902]
[1641502811270,2.00479,3423.1,3422.9,0.6902]
[1641502811656,2.464772,3423.1,3422.4,2.88134344]
[1641502812054,2.00479,3423.1,3422.4,2.88134344]
[1641502814061,2.00479,3423.1,3422.9,1.0595525]
[1641502814557,2.00479,3423.6,3422.9,1.0595525]
[1641502814760,1.46020361,3423.9,3422.9,2.5595525]
[1641502814959,1.46020361,3423.9,3423.4,7.59438213]
[1641502815161,1.37779,3424.3,3423.4,16.23568213]
[1641502815359,1.37779,3424.3,3423.9,1.75578382]
[1641502816160,0.9625844,3424.9,3424.2,4.0]
[1641502816363,0.9625844,3424.9,3424.2,4.5681]
[1641502816962,0.9625844,3424.9,3424.5,2.00479]
[1641502817564,4.90803039,3425.3,3424.5,2.00479]
[1641502817763,0.397182,3425.2,3424.5,2.00479]
[1641502818464,1.897182,3425.2,3424.5,2.00479]
[1641502818665,0.384472,3425.1,3424.5,2.00479]
[1641502818868,0.397182,3425.0,3424.5,2.00479]
[1641502819866,2.90329969,3425.2,3424.5,2.00479]
[1641502820069,2.90329969,3425.2,3424.5,2.83759]
[1641502820665,3.30048169,3425.2,3424.5,2.83759]
[1641502820865,3.68495369,3425.2,3424.5,2.83759]
[1641502821268,0.781654,3425.2,3424.5,2.83759]
[1641502822271,0.397182,3425.2,3424.5,2.83759]
[1641502822669,3.30043935,3425.2,3424.5,2.83759]
[1641502826075,1.5,3425.0,3424.5,2.83759]
[1641502826276,0.397182,3424.9,3424.5,2.00479]
[1641502828781,2.90364283,3424.8,3424.4,2.02560853]
[1641502828980,2.00479,3424.5,3424.4,2.02560853]
[1641502829183,2.464772,3424.5,3424.4,2.02560853]
[1641502829382,0.844454,3424.5,3424.4,2.02560853]
[1641502829780,1.241636,3424.5,3423.9,1.94203496]
[1641502829980,2.741636,3424.5,3423.9,1.94203496]
[1641502830582,1.241636,3424.5,3423.9,1.94203496]
[1641502831087,1.5,3424.0,3423.4,2.00479]
[1641502831284,1.5,3424.0,3422.3,8.0]
[1641502831285,0.397182,3423.9,3422.8,59.0119]
[1641502831483,0.384472,3423.8,3422.8,59.0119]
[1641502831685,0.384472,3423.8,3422.8,29.7628]
[1641502831984,0.384472,3423.8,3422.6,29.679]
[1641502832788,2.9043802,3424.0,3422.8,4.0]
[1641502832988,2.00479,3423.9,3423.1,2.00479]
[1641502835189,1.46030514,3423.6,3423.1,2.00479]
[1641502835588,2.00479,3423.9,3423.1,2.00479]
[1641502836189,2.00479,3423.9,3423.3,0.87632928]
[1641502837192,2.00479,3423.9,3423.5,0.87627259]
[1641502837994,0.384472,3423.8,3423.5,0.87627259]
[1641502838195,0.459982,3423.7,3423.1,2.00479]
[1641502838695,0.397182,3423.6,3423.1,2.00479]
[1641502838894,0.397182,3423.6,3423.2,0.87636661]
[1641502839695,2.00479,3423.9,3423.2,4.87636661]
[1641502841095,2.00479,3424.3,3423.5,2.00479]
[1641502841296,0.397182,3424.2,3423.7,0.87624409]
[1641502841497,0.781654,3424.2,3423.7,0.87624409]
[1641502841899,1.5,3424.1,3423.5,2.00479]
[1641502842195,0.397182,3424.0,3423.1,2.00479]
[1641502842397,1.5,3423.4,3423.1,2.00479]
[1641502842597,0.459982,3423.3,3423.1,2.00479]
[1641502842798,0.397182,3423.2,3423.1,2.00479]
[1641502845801,0.397182,3423.2,3422.3,27.7118]
[1641502846100,0.397182,3423.2,3422.0,0.73584578]
[1641502846503,1.5,3423.0,3422.0,0.73584578]
[1641502846702,1.5,3423.0,3421.4,0.01459718]
[1641502846703,1.5,3423.0,3421.9,0.73584578]
[1641502847006,2.00479,3422.2,3421.4,2.00479]
[1641502847202,13.271654,3422.1,3421.4,2.00479]
[1641502847402,0.781654,3422.1,3421.4,2.00479]
[1641502847601,2.281654,3422.1,3421.4,2.00479]
[1641502848203,12.49,3422.0,3421.4,2.00479]
[1641502848404,12.49,3422.0,3420.5,57.5245]
[1641502849202,2.00479,3421.7,3420.9,2.00479]
[1641502849502,0.397182,3421.6,3420.9,2.00479]
[1641502850601,1.85837135,3421.6,3420.9,2.00479]
[1641502851402,0.397182,3421.6,3420.9,2.00479]
[1641502852205,2.00479,3421.7,3421.0,0.87693306]
[1641502852602,2.00479,3421.7,3421.1,4.0]
[1641502852901,2.00479,3421.7,3421.2,0.87686913]
[1641502853303,4.91066732,3422.2,3421.2,0.87686913]
[1641502853503,2.00479,3422.2,3421.2,0.87686913]
[1641502853906,2.00479,3422.2,3421.4,2.37680873]
[1641502854105,2.00479,3422.2,3421.4,2.94400873]
[1641502855106,4.91024729,3422.6,3421.8,2.00479]
[1641502855408,0.384472,3422.5,3421.8,0.54360065]
[1641502856409,0.384472,3422.5,3421.8,4.54360065]
[1641502856608,2.00479,3422.6,3422.3,1.5]
[1641502856809,2.00479,3422.6,3422.3,2.1102]
[1641502857108,2.00479,3422.6,3422.3,0.6102]
[1641502857709,0.58429782,3422.2,3421.9,1.47430716]
[1641502858110,0.459982,3422.1,3421.8,0.54360065]
[1641502858409,0.58429782,3422.2,3421.8,0.54360065]
[1641502859212,0.781654,3422.4,3421.8,0.54360065]
[1641502860018,0.781654,3422.4,3422.0,4.0]
[1641502860214,2.69309,3422.6,3422.0,4.0]
[1641502860415,2.00479,3422.6,3422.0,4.0]
[1641502861420,0.384472,3422.5,3421.8,0.54360065]
[1641502862019,0.397182,3422.4,3421.8,0.54360065]
[1641502864922,1.5,3422.3,3421.8,0.54360065]
[1641502865127,2.401972,3422.2,3421.3,2.00479]
[1641502866626,1.46094599,3422.1,3421.3,2.00479]
[1641502867427,0.397182,3422.0,3421.3,2.00479]
[1641502871130,2.92189198,3422.1,3421.7,2.00479]
[1641502871333,2.00479,3422.2,3421.7,2.00479]
[1641502871931,0.384472,3422.1,3421.7,2.00479]
[1641502876041,0.397182,3422.0,3421.7,2.00479]
[1641502876241,0.459982,3421.9,3421.7,2.00479]
[1641502876641,0.397182,3422.0,3421.7,2.00479]
[1641502876841,0.384472,3422.1,3421.7,2.00479]
[1641502877642,0.397182,3422.0,3421.7,2.00479]
[1641502877843,0.459982,3421.9,3421.7,2.00479]
[1641502878841,0.857164,3421.9,3421.7,2.00479]
[1641502880143,0.397182,3421.9,3421.7,2.00479]
[1641502880745,0.857164,3421.9,3421.7,2.00479]
[1641502882445,0.397182,3421.9,3421.7,2.00479]
[1641502882850,0.459982,3421.8,3421.7,2.00479]
[1641502883446,0.397182,3421.9,3421.7,2.00479]
[1641502886050,3.30644082,3422.1,3421.7,2.00479]
[1641502886250,3.30644082,3422.1,3421.8,0.38158391]
[1641502886849,0.459982,3422.0,3421.8,0.38158391]
[1641502888851,0.397182,3421.9,3421.8,0.38158391]
[1641502889150,0.988882,3421.9,3421.8,0.38158391]
[1641502892155,0.5917,3421.9,3421.4,0.38158391]
[1641502892354,2.92196882,3422.1,3421.4,0.38158391]
[1641502892355,2.92196882,3422.1,3421.6,5.84512397]
[1641502892556,2.9673744,3422.2,3421.6,6.46532397]
[1641502893155,0.781654,3422.1,3421.6,0.6202]
[1641502893355,0.781654,3422.1,3421.7,0.38158391]
[1641502893356,2.00479,3421.8,3421.7,0.38158391]
[1641502893555,2.464772,3421.8,3421.7,0.38158391]
[1641502895059,2.464772,3421.8,3421.4,0.38158391]
[1641502896361,2.464772,3421.8,3421.3,2.00479]
[1641502897163,2.464772,3421.8,3421.4,0.38160658]
[1641502900867,2.00479,3421.8,3421.4,0.38160658]
[1641502902865,2.00479,3421.8,3421.7,0.74060747]
[1641502903069,2.464772,3421.8,3421.7,0.74060747]
[1641502904871,2.92831245,3421.8,3421.6,0.74060747]
[1641502905069,2.46833045,3421.8,3421.6,0.74060747]
[1641502905569,0.459982,3421.7,3421.6,0.74060747]
[1641502905969,2.00479,3421.8,3421.6,0.74060747]
[1641502906172,0.96261392,3422.0,3421.7,3.4698179]
[1641502907272,2.96740392,3422.2,3421.7,3.4698179]
[1641502908775,2.00479,3422.2,3422.0,0.7405213]
[1641502912677,0.96261392,3422.4,3422.1,4.0]
[1641502912877,0.3262674,3422.6,3422.1,4.0]
[1641502913077,1.8049011,3423.1,3422.1,4.0]
[1641502913275,1.8049011,3423.0,3422.1,4.0]
[1641502913481,0.96181095,3422.2,3422.1,6.00479]
[1641502914080,0.96181095,3422.2,3422.1,2.00479]
[1641502914780,1.44392088,3422.7,3422.1,2.00479]
[1641502915180,1.44392088,3423.4,3422.1,2.38639658]
[1641502915379,1.44392088,3423.4,3422.2,1.5]
[1641502915580,1.44392088,3423.4,3422.5,2.00479]
[1641502915983,1.44392088,3423.4,3422.7,4.0]
[1641502916184,1.44392088,3423.4,3422.7,4.7086]
[1641502916386,1.44392088,3423.4,3422.7,6.2086]
[1641502916589,1.44392088,3423.6,3422.7,6.2086]
[1641502916782,1.44392088,3423.6,3423.3,4.0]
[1641502917583,1.44392088,3423.6,3423.3,6.00479]
[1641502918185,2.00479,3424.1,3423.4,0.96311357]
[1641502919287,2.00479,3424.1,3424.0,0.98746817]
[1641502920287,2.464772,3424.1,3424.0,0.98746817]
[1641502921290,2.464772,3424.1,3423.3,3.18997888]
[1641502921991,3.232872,3424.1,3423.3,3.18997888]
[1641502922191,3.232872,3424.1,3423.3,3.9294073]
[1641502924192,0.96234937,3423.9,3423.3,3.18997888]
[1641502924791,0.397182,3423.8,3423.3,3.18997888]
[1641502924991,1.35953137,3423.8,3423.3,3.18997888]
[1641502926096,0.96234937,3423.7,3423.3,3.18997888]
[1641502927295,1.35953137,3423.8,3423.3,3.18997888]
[1641502927895,0.96234937,3423.8,3423.3,3.18997888]
[1641502928096,0.96234937,3423.8,3423.6,0.87626876]
[1641502928496,0.459982,3423.7,3423.6,0.87626876]
[1641502928795,0.92332228,3423.7,3423.6,0.87626876]
[1641502928995,0.46334028,3423.7,3423.6,0.87626876]
[1641502929195,0.46334028,3423.7,3423.3,2.00479]
[1641502929897,0.96234937,3423.8,3423.3,2.00479]
[1641502930999,1.42568965,3423.8,3423.3,2.00479]